Cogmind - Beta 13 @@@ ROGUE MODE // 2024.06.09 @ 08:25:25 Player: AbsoluteZero Result: Destroyed by G-34 Mercenary with Small Laser Performance ------------- Evolutions (1) 500 Regions Visited (4) 800 Robots Destroyed (46) 230 Value Destroyed (1516) 1516 Prototype IDs (6) 120 Alien Tech Used (0) 0 Bonus (116) 116 TOTAL SCORE: 3282 Bonus ------- High Alert Combat Kills 41 Follower Combat Kills 75 Cogmind --------- Core Integrity 0/400 Matter 300/300 Energy 100/100 System Corruption 11% Temperature Cool (12) Movement Core (1350) Ox26 Location -9/Storage Parts ------- > --- POWER (1) -------- (None) > --- PROPULSION (3) --- (None) > --- UTILITY (3) ------ Huge Storage Unit > --- WEAPON (2) ------- (None) > --- INVENTORY (25) --- Ion Engine Ion Engine Improved Ion Engine Light Nuclear Core Compact Wheel Armored Wheel Armored Wheel Armored Wheel Armored Wheel Large Storage Unit Seismic Detector Light Armor Plating Improved EM Shotgun Improved EM Shotgun Improved Medium Laser Improved Medium Laser Improved Medium Laser Improved Medium Laser Pulse Rifle Advanced Beam Cannon Advanced Beam Cannon Advanced Beam Cannon Heavy Assault Rifle Peak State ------------ > --- POWER ------------ Heavy Ion Engine > --- PROPULSION ------- Armored Wheel Armored Wheel Armored Wheel > --- UTILITY ---------- Improved Heat Sink Huge Storage Unit Light Armor Plating > --- WEAPON ----------- Advanced Beam Cannon Heavy Assault Rifle > --- INVENTORY -------- Ion Engine Ion Engine Improved Ion Engine Light Nuclear Core Compact Wheel Armored Wheel Armored Wheel Armored Wheel Armored Wheel Large Storage Unit Seismic Detector Light Armor Plating Improved EM Shotgun Improved EM Shotgun Improved Medium Laser Improved Medium Laser Improved Medium Laser Improved Medium Laser Pulse Rifle Advanced Beam Cannon Advanced Beam Cannon Advanced Beam Cannon Heavy Assault Rifle [Rating: 24] Favorites ----------- Power Ion Engine Engine Ion Engine Power Core Light Nuclear Core Propulsion Aluminum Leg Leg Aluminum Leg Wheel Armored Wheel Utility Seismic Detector Device Seismic Detector Storage Large Storage Unit Protection Hardened Medium Armor Plating Weapon Assault Rifle Energy Gun Pulse Rifle Energy Cannon Beam Cannon Ballistic Gun Assault Rifle Ballistic Cannon Improved Light Cannon Launcher Grenade Launcher Build | -11 -10 -10 -9 -9 ------- Run | Yrd Mat Min Mat Sto Slots Evolved 2 | . . . 2 . Power . | . . . . . Propulsion 1 | . . . 1 . Utility 1 | . . . 1 . Weapon . | . . . . . Parts Attached 53 | 8 6 9 15 15 Power 4 | 1 . 1 . 2 Engine 3 | 1 . 1 . 1 Core 1 | . . . . 1 Reactor . | . . . . . Propulsion 12 | 2 3 2 5 . Treads . | . . . . . Leg 9 | 2 3 2 2 . Wheel 3 | . . . 3 . Hover . | . . . . . Flight . | . . . . . Utility 13 | 2 1 . 3 7 Device 8 | 1 . . 2 5 Storage 3 | 1 1 . . 1 Processor . | . . . . . Hackware . | . . . . . Protection 2 | . . . 1 1 Artifact . | . . . . . Weapon 24 | 3 2 6 7 6 Energy Gun 5 | 1 . 1 2 1 Energy Cannon 5 | . 1 1 2 1 Ballistic Gun 9 | 2 1 2 2 2 Ballistic Cannon 1 | . . . . 1 Launcher 4 | . . 2 1 1 Special Weapon . | . . . . . Impact Weapon . | . . . . . Slashing Weapon . | . . . . . Piercing Weapon . | . . . . . Special Melee Weapon . | . . . . . Unidentified Prototypes 4 | . . . 1 3 Parts Lost 14 | . . 2 1 11 Power 2 | . . 1 . 1 Propulsion 5 | . . 1 1 3 Utility 3 | . . . . 3 Weapon 4 | . . . . 4 Highest Loss Streak 8 | . . 2 1 8 To Critical Strikes . | . . . . . Average Slot Usage (%) 99 | . 100 99 100 98 Engine 11 | . 14 13 11 8 Leg 19 | . 28 27 19 . Wheel 11 | . . . 13 32 Device 12 | . 14 14 11 10 Storage 12 | . 14 14 11 11 Protection 5 | . . . 11 10 Energy Gun 5 | . . 10 9 1 Energy Cannon 3 | . 2 1 1 8 Ballistic Gun 12 | . 25 5 11 5 Ballistic Cannon 1 | . . . . 5 Launcher 2 | . . 9 . . Naked Turns . | . . . . . Heaviest Build 100 | 15 31 32 40 100 Greatest Support 36 | 20 20 20 36 36 Greatest Overweight (x) 3 | . 3 1 3 2 Average Overweight (x) 1 | . . 1 1 1 Largest Inventory Capacity 25 | 8 15 15 15 25 Average Capacity 15 | 6 11 15 15 24 Most Carried 23 | 3 13 15 15 23 Average Carried 13 | 2 8 14 14 19 Final Capacity 25 | 8 15 15 15 25 Final Carried 23 | 3 13 15 15 23 Class Distribution -------------------- 86% | Mutant 13% | Scavenger-Mutant Dominant Class ---------------- Mutant | -10/Materials Mutant | -10/Mines Scavenger-Mutant | -9/Materials Mutant | -9/Storage Resources | -11 -10 -10 -9 -9 ----------- Run | Yrd Mat Min Mat Sto Matter Collected 1303 | 230 225 347 208 293 Remotely . | . . . . . Salvage Created 1547 | 26 225 280 495 521 Parts 90 | 5 12 14 32 27 Haulers Intercepted 1 | . . . . 1 Recyclers Shooed . | . . . . . Parts Field Recycled . | . . . . . Retrieved Matter . | . . . . . Parts Self-Destructed . | . . . . . Prevented . | . . . . . Kills | -11 -10 -10 -9 -9 ------- Run | Yrd Mat Min Mat Sto Combat Hostiles Destroyed 42 | . 5 14 12 11 Guns 17 | . 5 3 6 3 Cannons 12 | . . 2 2 8 AOE 13 | . . 9 4 . Classes Destroyed 12 | 1 1 2 5 3 Worker 1 | . . 1 . . Builder 1 | . . . . 1 Tunneler 1 | 1 . . . . Hauler 1 | . . . . 1 Recycler 1 | . . . 1 . Mechanic 1 | . . . . 1 Operator 1 | . . . 1 . Watcher 2 | . . . 2 . Swarmer 4 | . . . 4 . Grunt 25 | . 5 9 4 7 Sentry 8 | . . . 4 4 Assembled 5 | . . 5 . . Best Kill Streak 6 | 1 2 5 6 3 Combat Bots Only 6 | . 2 4 6 3 Max Kills in Single Turn 4 | 1 1 2 4 2 Gunslinging . | . . . . . Exploded 4 | . . 1 4 . Melee . | . . . . . Uniques/NPCs Destroyed . | . . . . . Combat | -11 -10 -10 -9 -9 -------- Run | Yrd Mat Min Mat Sto Hostile Shots Fired 234 | . 34 39 50 111 Missed 66 | . 9 11 15 31 Damage Taken 2651 | . 319 523 483 1326 Core 552 | . 31 111 87 323 Absorbed by Shields . | . . . . . Core Remaining (%) 71 | 100 . 43 . . Volleys Fired 131 | 1 27 28 32 43 Largest 2 | 2 2 2 2 2 Hottest 107 | 40 40 93 86 107 Shots Fired 247 | 2 54 49 61 81 Gun 162 | 2 54 27 53 26 Cannon 68 | . . 7 7 54 Launcher 17 | . . 15 1 1 Special . | . . . . . Kinetic 141 | 2 54 17 31 37 Thermal 89 | . . 17 29 43 Explosive 17 | . . 15 1 1 Electromagnetic . | . . . . . Robot Hit Streak 21 | 1 14 11 21 7 Robot Miss Streak 5 | 1 5 3 3 2 Penetration Max . | . . . . . Secondary Targets . | . . . . . Shots Hit Robots 163 | 1 34 30 44 54 Core Hits 83 | 1 10 30 20 22 Critical Kills . | . . . . . Critical Parts Destroyed 1 | . 1 . . . Critical Strikes 1 | . 1 . . . Destroy 1 | . 1 . . . Melee Attacks . | . . . . . Impact . | . . . . . Slashing . | . . . . . Piercing . | . . . . . Sneak Attacks . | . . . . . Combat Hostiles . | . . . . . Follow-up Attacks . | . . . . . Damage Inflicted 3667 | 14 450 950 1094 1159 Guns 1683 | 14 450 239 681 299 Cannons 916 | . . 104 54 758 Explosions 1065 | . . 607 359 99 Melee . | . . . . . Ramming 3 | . . . . 3 Kinetic 1353 | 14 450 120 326 443 Thermal 1454 | . . 223 617 614 Explosive 857 | . . 607 151 99 Electromagnetic . | . . . . . Impact . | . . . . . Slashing . | . . . . . Piercing . | . . . . . Highest Corruption 11 | . . 4 . 11 Average Corruption 3 | . . 4 . 3 Corruption Purged . | . . . . . Corruption Blocked . | . . . . . Effects 10 | . . 10 . . Message Errors 3 | . . 3 . . Matter Fused 2 | . . 2 . . Heat Flow Errors 1 | . . 1 . . Data Loss (minor) 2 | . . 2 . . Alerts 1 | . . 1 . . Weapon Failures 1 | . . 1 . . Overload Shots . | . . . . . Overflow Damage 88 | . . 10 78 . Projectiles . | . . . . . Explosions 88 | . . 10 78 . Melee . | . . . . . Knockbacks . | . . . . . Impact . | . . . . . Kinetic . | . . . . . Secondary . | . . . . . Self-Inflicted Damage 117 | . . 116 . 1 Shots 4 | . . 4 . . Rammed 1 | . . . . 1 Targets Rammed 1 | . . . . 1 Kicked . | . . . . . Crushed . | . . . . . Highest Temperature 234 | . 2 222 234 114 Average Temperature 61 | . 2 69 83 32 Received Heat Transfer 1058 | . 180 212 171 495 Effects 4 | . . 1 3 . Interference 4 | . . 1 3 . Siege Activations . | . . . . . Robots Corrupted . | . . . . . Combat Hostiles . | . . . . . Parts Fried . | . . . . . Impact Corruptions . | . . . . . Robots Melted . | . . . . . Combat Hostiles . | . . . . . Parts Melted 4 | . . . 1 3 Heat Transferred 2666 | . . 481 1038 1147 Parts Sabotaged . | . . . . . Parts Stolen . | . . . . . Parts Stripped . | . . . . . Power Chain Reactions . | . . . . . Alert | -11 -10 -10 -9 -9 ------- Run | Yrd Mat Min Mat Sto Peak Influence 440 | 5 133 287 407 440 Initial 171 | . 3 19 45 171 Average 160 | 1 57 164 155 306 Maximum Alert Level 2 | . . 1 2 2 Low Security (%) 67 | 100 100 69 83 7 Level 1 26 | . . 30 12 72 Level 2 5 | . . . 3 20 Level 3 . | . . . . . Level 4 . | . . . . . Level 5 . | . . . . . High Security . | . . . . . Max Security . | . . . . . Squads Dispatched 6 | . 1 1 . 4 Investigation 3 | . 1 1 . 1 Extermination . | . . . . . Reinforcement 1 | . . . . 1 Assault 2 | . . . . 2 Garrison . | . . . . . Intercept . | . . . . . Searches Triggered . | . . . . . Construction Impeded . | . . . . . Haulers Reinforced . | . . . . . Active Scanning Responses . | . . . . . Cargo Convoy Interrupts . | . . . . . Stealth | -11 -10 -10 -9 -9 --------- Run | Yrd Mat Min Mat Sto Distress Signals 5 | . . . 2 3 Communications Jammed . | . . . . . Distress Signals . | . . . . . Times Spotted 80 | . 10 19 20 31 Peak Tracking Total 12 | . 3 6 5 12 Tactical Retreats 3 | . . 2 . 1 Traps | -11 -10 -10 -9 -9 ------- Run | Yrd Mat Min Mat Sto Traps Triggered 5 | . 1 . . 4 Indirectly . | . . . . . Trap Hack Attempts . | . . . . . Triggered . | . . . . . Disarmed . | . . . . . Reprogrammed . | . . . . . Reused . | . . . . . Traps Extracted . | . . . . . Installed . | . . . . . Triggered . | . . . . . Machines | -11 -10 -10 -9 -9 ---------- Run | Yrd Mat Min Mat Sto Machines Disabled 8 | . . . 6 2 Max in Single Turn 6 | . . . 6 1 Machines Repaired . | . . . . . Machines Dismantled . | . . . . . Machines Sabotaged . | . . . . . Overloaded Fab Kills . | . . . . . Hacking | -11 -10 -10 -9 -9 --------- Run | Yrd Mat Min Mat Sto Machines Accessed 13 | . 3 1 5 4 Terminals 11 | . 3 . 4 4 Fabricators . | . . . . . Repair Stations . | . . . . . Recycling Units 1 | . . . 1 . Scanalyzers . | . . . . . Garrison Access . | . . . . . Total Hacks 43 | . 6 1 18 18 Successful 19 | . 3 1 9 6 Failed 24 | . 3 . 9 12 Catastrophic 2 | . 2 . . . Database Lockouts . | . . . . . Manual 23 | . 3 . 13 7 Terminals 41 | . 6 . 17 18 Fabricators . | . . . . . Repair Stations . | . . . . . Recycling Units 1 | . . . 1 . Scanalyzers . | . . . . . Garrison Access . | . . . . . Terminal Hacks 11 | . 2 1 4 4 Robot Analysis 2 | . . . 2 . Prototype ID Bank 1 | . . . . 1 Open Door 1 | . . 1 . . Branch Access Points 2 | . 1 . 1 . Alert Level 1 | . . . . 1 Hauler Manifests 2 | . 1 . . 1 Registered Prototypes 1 | . . . . 1 Zone Layout 1 | . . . 1 . Fabricator Hacks . | . . . . . Repair Station Hacks . | . . . . . Recycling Unit Hacks 1 | . . . 1 . Report Inventory 1 | . . . 1 . Scanalyzer . | . . . . . Garrison Access Hacks . | . . . . . Unauthorized Hacks 7 | . 1 . 4 2 Terminals 7 | . 1 . 4 2 Botnet 6 | . 1 . 3 2 Disrupt 1 | . . . 1 . Fabricators . | . . . . . Repair Stations . | . . . . . Recycling Units . | . . . . . Scanalyzers . | . . . . . Garrison Access . | . . . . . Data Cores Recovered 1 | . . . 1 . Used 1 | . . . 1 . Hacking Detections 10 | . 2 . 4 4 Full Trace Events 3 | . 1 . 1 1 Feedback Events . | . . . . . Feedback Blocked . | . . . . . Robot Schematics Acquired . | . . . . . Robots Built . | . . . . . Authchips . | . . . . . Time . | . . . . . Total Robot Build Rating . | . . . . . Part Schematics Acquired . | . . . . . Parts Built . | . . . . . Authchips . | . . . . . Time . | . . . . . Total Part Build Rating . | . . . . . Parts Repaired . | . . . . . Time . | . . . . . Parts Recycled . | . . . . . Recycled Matter . | . . . . . Retrieved Matter . | . . . . . Retrieved Components . | . . . . . Parts Scanalyzed . | . . . . . Part Schematics Acquired . | . . . . . Parts Damaged . | . . . . . Bothacking | -11 -10 -10 -9 -9 ------------ Run | Yrd Mat Min Mat Sto Used RIF Installer . | . . . . . Robots Hacked . | . . . . . Non-combat . | . . . . . Combat . | . . . . . Robot Hacks Applied . | . . . . . Relay Couplers Released . | . . . . . Fabnet Peak Effective % . | . . . . . Robots Rewired . | . . . . . Allies Hacked . | . . . . . Hacks Repelled . | . . . . . Allies | -11 -10 -10 -9 -9 -------- Run | Yrd Mat Min Mat Sto Total Allies 2 | . . . . 2 Largest Group 2 | . . . . 2 Highest-Rated Group 62 | . . . . 62 Highest-Rated Ally 31 | . . . . 31 Total Orders . | . . . . . Ally Attacks 18 | . . . . 18 Total Damage 294 | . . . . 294 Kills 3 | . . . . 3 Allies Corrupted . | . . . . . Allies Melted . | . . . . . Intel | -11 -10 -10 -9 -9 ------- Run | Yrd Mat Min Mat Sto Robot Analysis Total 2 | . . . 2 . Derelict Logs Recovered 1 | . . 1 . . Drone Launches . | . . . . . Drone Recoveries . | . . . . . Exploration | -11 -10 -10 -9 -9 ------------- Run | Yrd Mat Min Mat Sto Turns Passed 2614 | 97 683 591 643 600 Spaces Moved 1333 | 68 338 262 327 338 Core 3 | 3 . . . . Treads . | . . . . . Legs 822 | 65 338 262 157 . Wheels 508 | . . . 170 338 Hover . | . . . . . Flight . | . . . . . Fastest Speed 50 | 50 120 190 105 90 Average Speed 148 | 116 157 190 145 117 Slowest Speed 330 | 120 330 190 190 120 Overloaded Moves . | . . . . . Propulsion Burnouts . | . . . . . Robots Hopped . | . . . . . Cave-ins Triggered . | . . . . . Exploration Rate (%) 43 | 4 62 59 43 51 Regions Visited 4 Branch Regions 2 Pre-discovered Areas . | . . . . . Known Exits Taken 2 | . 1 . 1 . Unknown Exits Taken 2 | 1 . 1 . . Scrap Searched . | . . . . . Spaces Dug . | . . . . . Terrain Destroyed 163 | . . 110 47 6 Melee . | . . . . . Projectile 1 | . . . . 1 AOE 162 | . . 110 47 5 Terrain Rammed . | . . . . . Walls Destroyed . | . . . . . Machines Disabled . | . . . . . Actions | -11 -10 -10 -9 -9 --------- Run | Yrd Mat Min Mat Sto Total 1703 | 79 435 304 430 455 Wait 139 | . 50 1 42 46 Move 1329 | 67 337 261 326 338 Hop . | . . . . . Pick Up 30 | 3 11 3 6 7 Fast Attach 19 | 7 3 1 4 4 Attach 8 | . . 2 3 3 Detach 6 | . . 1 1 4 Swap 26 | 1 3 6 8 8 Drop 14 | . 4 1 8 1 Fire 131 | 1 27 28 32 43 Melee . | . . . . . Ram 1 | . . . . 1 Kick . | . . . . . Crush . | . . . . . Escape Stasis . | . . . . . Rewire . | . . . . . Trap . | . . . . . Miscellaneous . | . . . . . Route ------- -11/Scrapyard -10/Materials (discovered 3 exits: *Mat x2 / *Min) -10/Mines (discovered 2 exits: *Mat / Sub) -9/Materials (discovered 3 exits: [*Mat] / *Min / *Sto) -9/Storage History --------- Turn | Location | Event 6 | -11/Scrapyard | Discovered new exit (range 16) 98 | -11/Scrapyard | Entered Materials 309 | -10/Materials | Build established: Mutant 438 | -10/Materials | Discovered new exit (range 16) 694 | -10/Materials | Discovered new exit (range 10) 699 | -10/Materials | Identified exit to Mines 781 | -10/Materials | Entered Mines 808 | -10/Mines | Assembled infested the area 914 | -10/Mines | Met a Derelict shopkeep closing up shop 1279 | -10/Mines | Core integrity fell below 50% 1344 | -10/Mines | Identified exit to Subcaves 1346 | -10/Mines | Discovered new exit (range 15) 1372 | -10/Mines | Entered Materials 1372 | -9/Materials | Evolved 2 slots: Propulsion x1, Utility x1 1678 | -9/Materials | Build established: Scavenger-Mutant 1772 | -9/Materials | Identified exit to Mines 1772 | -9/Materials | Identified exit to Storage 2001 | -9/Materials | Discovered new exit (range 15) 2015 | -9/Materials | Entered Storage 2057 | -9/Storage | Build established: Mutant 2528 | -9/Storage | Met a pair of Derelict thieves 2588 | -9/Storage | Core integrity fell below 50% 2610 | -9/Storage | System corruption reached 10% 2612 | -9/Storage | Core integrity fell below 20% 2615 | -9/Storage | Destroyed by G-34 Mercenary with Small Laser Last Messages --------------- 02581_ G-34 Mercenary destroyed. 02585_ Transfer Shaft disabled. 02588_ Y-45 Defender destroyed. 02600_ Slammed into Y-45 Defender. 02600_ Destabilizing: System interference. 02600_ Imp. Heat Sink temporarily disabled. 02601_ Imp. Heat Sink destroyed. 02601_ System corrupted by crushing effect (+1). 02603_ M-13 Machinist repairs B-36 Bruiser. 02606_ Arm. Wheel destroyed. 02607_ Adv. Beam Cannon destroyed. 02607_ System corrupted by crushing effect (+4). 02607_ Arm. Wheel destroyed. 02609_ Hvy. Assault Rifle destroyed. 02609_ System corrupted by crushing effect (+4). 02612_ Hvy. Ion Engine destroyed. 02612_ Critical hit (Burn: +37). 02612_ Arm. Wheel destroyed. 02614_ Critical hit (Burn: +37). 02615_ M-13 Machinist repairs Y-45 Defender. Map ----- +----------------------------------------------------+ | ??# #?# * #???????????????? | | ??######?# #???????????????? | | ?????????# #???????????????? | | ?????????#% %##########??????? | | ?????????# % ## # [ #??????? | | ????????#############/### " [ #??????? | | ??????### ####### ### #??????? | | ????? + " #??????? | | ????? ##T# ] #??????? | | ????? % #### ] ]#??????? | | ???????## ######### #??######??????? | | ????????## ????#"""???# #??????????????? | | ?????????????###"Y"####+###????????????? | | ?????????????# !!! #????????????? | | ?????????????# !!! ! #????????????? | | ?????????????# "T" !!! #????????????? | | ?????????????+ """ #????????????? | | ?????????????# #????????????? | | ?????????????########/############?????? | | ????????????????????# #?# #?????? | | ????????????????????# #?# """#?????? | | ????????# ####### ### """#?????? | | ????????# # """#?????? | | ????????# m gg #?????? | | ????????# "! #Yggg ""#?????? | | ????????# "%%=#####+###+#@m """#?????? | | ????????## ?????????????#Yb "#?????? | | ????????????????????????# !%= #?????? | | ????????????????????????######## #?????? | | ?????????????????????????????????#?????? | | ???????????????????????????????????????? | | ???????????????????????????????????????? | | ???????????????????????????????????????? | | ???????????????????????????????????????? | | ???????????????????????????????????????? | | ???????????????????????????????????????? | | ???????????????????????????????????????? | | ???????????????????????????????????????? | | ???????????????????????????????????????? | | ???????????????????????????????????????? | | ???????????????????????????????????????? | | ???????????????????????????????????????? | | ???????????????????????????????????????? | | ???????????????????????????????????????? | | ???????????????????????????????????????? | | ???????????????????????????????????????? | | ???????????????????????????????????????? | | ???????????????????????????????????????? | | ???????????????????????????????????????? | | ???????????????????????????????????????? | +----------------------------------------------------+ Best States ------------- Heat Dissipation 42 Energy Generation 14 Energy Capacity 280 Matter Stores 300 Matter Capacity 300 Sight Range 16 Terrain Scan Density 10 Armor Coverage 225 Evasion (%) 55 Item Schematics ----------------- None Robot Schematics ------------------ None Fabricated ------------ Nothing Alien Tech Used ----------------- None Achievements -------------- None Challenges ------------ None Game ------ Seed DispersionVortexCharger Manual? 0 Play Time 00:27:57 Cumulative 101.3 hours Start 2024.06.09 @ 07:59:52 End 2024.06.09 @ 08:25:25 Sessions 1 Manual Loads 0 Difficulty Rogue Special Mode None Game No. 115 Rogue 115 Adventurer 0 Explorer 0 Win Type - Total 0 Types 0/0/0/0/0/0/0/0/0 Lore% 46 Gallery% 46 Achievement% 37 Wizard Run 0 Options --------- Layout 0 ASCII 0 Keyboard 0 Movement Numpad Keybinds 0 Fullscreen 1 Font 18/SmallcapsGlow Map View 76x50 Zoom Use 0% Tactical HUD 1 Map Filters NONE Filters NONE Steam 1 RUN: c96de82c-25c8-4fc1-ab0a-c8fe4c5884fb